fUSD/lending_fUSD_20241215
["ID","MTS","AMOUNT","RATE_DAILY","PERIOD"]
[345448023,1734263449455,-500.0,0.00019996,3]
[345448025,1734263449464,-867.84,0.00019996,3]
[345448026,1734263449474,-19.13609238,0.00019996,3]
[345448029,1734263449486,-480.86390762,0.00019996,3]
[345448031,1734263449496,-151.0,0.00019996,2]
[345448033,1734263449505,-590.31,0.00019996,3]
[345448035,1734263449516,-500.0,0.00019996,3]
[345448037,1734263449526,-546.48,0.00019996,3]
[345448039,1734263449535,-748.24,0.00019996,3]
[345448041,1734263449544,-500.0,0.00019996,3]
[345448043,1734263449553,-546.64,0.00019996,3]
[345448045,1734263449564,-617.64,0.00019996,3]
[345448047,1734263449573,-1597.68,0.00019996,3]
[345448049,1734263449583,-1027.21,0.00019996,3]
[345448051,1734263449592,-500.0,0.00019996,3]
[345448053,1734263449601,-4435.54,0.00019996,3]
[345448055,1734263449611,-507.98,0.00019996,3]
[345448056,1734263449621,-500.0,0.00019996,3]
[345448059,1734263449631,-500.0,0.00019996,3]
[345448060,1734263449641,-1085.21,0.00019996,3]
[345448062,1734263449651,-706.39,0.00019996,3]
[345448064,1734263449660,-513.21,0.00019996,3]
[345448066,1734263449670,-500.0,0.00019996,3]
[345448068,1734263449680,-885.56,0.00019996,3]
[345448071,1734263449691,-386.84245185,0.00019996,3]
[345448072,1734263449700,-750.63,0.00019996,3]
[345448075,1734263449711,-500.0,0.00019996,3]
[345448077,1734263449722,-544.8,0.00019996,3]
[345448079,1734263449731,-500.0,0.00019996,3]
[345448081,1734263449740,-500.0,0.00019996,3]
[345448083,1734263449749,-629.77,0.00019996,3]
[345448085,1734263449758,-500.0,0.00019996,3]
[345448087,1734263449767,-500.0,0.00019996,3]
[345448088,1734263449776,-739.78,0.00019996,3]
[345448090,1734263449786,-630.84,0.00019996,3]
[345448092,1734263449795,-2135.44,0.00019996,3]
[345448095,1734263449806,-750.03,0.00019996,3]
[345448096,1734263449815,-500.0,0.00019996,3]
[345448098,1734263449824,-500.0,0.00019996,3]
[345448100,1734263449834,-150.0,0.00019996,3]
[345448102,1734263449843,-2140.27,0.00019996,3]
[345448104,1734263449852,-2052.1027693,0.00019996,2]
[345448106,1734263449862,-500.0,0.00019996,3]
[345448108,1734263449871,-150.0,0.00019996,3]
[345448110,1734263449881,-1894.47,0.00019996,3]
[345448112,1734263449891,-500.0,0.00019996,3]
[345448114,1734263449899,-500.0,0.00019996,3]
[345448116,1734263449908,-858.61,0.00019996,3]
[345448118,1734263449917,-500.0,0.00019996,3]
[345448120,1734263449927,-500.0,0.00019996,3]
[345448122,1734263449936,-1000.0,0.00019997,4]
[345448124,1734263449946,-150.0,0.00019997,2]
[345448126,1734263449955,-500.0,0.00019997,3]
[345448128,1734263449964,-500.0,0.00019997,3]
[345448129,1734263449973,-500.0,0.00019997,3]
[345448131,1734263449983,-500.0,0.00019997,3]
[345448133,1734263449992,-500.0,0.00019997,3]
[345448135,1734263450001,-500.0,0.00019997,3]
[345448136,1734263450011,-500.0,0.00019997,3]
[345448138,1734263450020,-500.0,0.00019997,3]
[345448140,1734263450030,-500.0,0.00019997,3]
[345448142,1734263450039,-500.0,0.00019997,3]
[345448144,1734263450049,-500.0,0.00019997,3]
[345448146,1734263450058,-500.0,0.00019997,3]
[345448148,1734263450066,-500.0,0.00019997,3]
[345448149,1734263450075,-500.0,0.00019997,3]
[345448150,1734263450084,-555.95,0.00019997,3]
[345448151,1734263450093,-500.0,0.00019997,3]
[345448152,1734263450102,-500.0,0.00019997,3]
[345448153,1734263450111,-500.0,0.00019997,3]
[345448154,1734263450120,-500.0,0.00019997,3]
[345448155,1734263450130,-500.0,0.00019997,3]
[345448156,1734263450139,-500.0,0.00019997,3]
[345448157,1734263450148,-962.06,0.00019997,3]
[345448158,1734263450157,-962.06,0.00019997,3]
[345448159,1734263450166,-274.301383,0.00019997,2]
[345448160,1734263450175,-274.301383,0.00019997,2]
[345448162,1734263450185,-274.301383,0.00019997,2]
[345448164,1734263450194,-274.301383,0.00019997,2]
[345448166,1734263450203,-500.0,0.00019997,3]
[345448168,1734263450212,-500.0,0.00019997,3]
[345448169,1734263450221,-500.0,0.00019997,3]
[345448171,1734263450231,-500.0,0.00019997,3]
[345448173,1734263450241,-230.507494,0.00019997,2]
[345448174,1734263450250,-666.0,0.00019997,2]
[345448175,1734263450259,-614.64,0.00019997,3]
[345448176,1734263450269,-500.0,0.00019997,3]
[345448177,1734263450278,-500.0,0.00019997,3]
[345448178,1734263450287,-500.0,0.00019997,3]
[345448179,1734263450297,-500.0,0.00019997,3]
[345448180,1734263450306,-500.0,0.00019997,3]
[345448181,1734263450315,-500.0,0.00019997,3]
[345448182,1734263450325,-500.0,0.00019997,3]
[345448183,1734263450334,-500.0,0.00019997,3]
[345448184,1734263450343,-865.82,0.00019997,3]
[345448185,1734263450353,-148.64865903,0.00019997,3]
[345448186,1734263450367,-717.17134097,0.00019997,3]
[345448187,1734263450377,-643.22,0.00019997,3]
[345448189,1734263450387,-834.75,0.00019997,3]
[345448191,1734263450395,-834.75,0.00019997,3]
[345448192,1734263450405,-500.0,0.00019997,3]
[345448193,1734263450415,-500.0,0.00019997,3]
[345448194,1734263450424,-500.0,0.00019997,3]
[345448195,1734263450433,-500.0,0.00019997,3]
[345448196,1734263450442,-500.0,0.00019997,3]
[345448197,1734263450452,-500.0,0.00019997,3]
[345448198,1734263450461,-562.57,0.00019997,3]
[345448199,1734263450471,-562.57,0.00019997,3]
[345448200,1734263450480,-500.0,0.00019997,3]
[345448201,1734263450489,-500.0,0.00019997,3]
[345448202,1734263450499,-542.27,0.00019997,3]
[345448203,1734263450509,-542.27,0.00019997,3]
[345448204,1734263450521,-500.0,0.00019997,3]
[345448205,1734263450531,-500.0,0.00019997,3]
[345448206,1734263450540,-500.0,0.00019997,3]
[345448207,1734263450550,-500.0,0.00019997,3]
[345448208,1734263450559,-500.0,0.00019997,3]
[345448209,1734263450568,-500.0,0.00019997,3]
[345448210,1734263450578,-500.0,0.00019997,3]
[345448211,1734263450588,-500.0,0.00019997,3]
[345448212,1734263450597,-500.0,0.00019997,3]
[345448213,1734263450607,-364.19,0.00019997,3]
[345448214,1734263450617,-2757.68,0.00019997,30]
[345448215,1734263450627,-2757.68,0.00019997,30]
[345448216,1734263450636,-2947.03,0.00019997,3]
[345448217,1734263450647,-2947.03,0.00019997,3]
[345448218,1734263450657,-151.0,0.00019997,2]
[345448219,1734263450666,-151.0,0.00019997,2]
[345448220,1734263450675,-500.0,0.00019997,3]
[345448221,1734263450685,-500.0,0.00019997,3]
[345448222,1734263450695,-500.0,0.00019997,3]
[345448223,1734263450705,-500.0,0.00019997,3]
[345448224,1734263450714,-922.44,0.00019997,3]
[345448225,1734263450725,-922.44,0.00019997,3]
[345448226,1734263450735,-500.0,0.00019997,3]
[345448227,1734263450744,-500.0,0.00019997,3]
[345448228,1734263450753,-500.0,0.00019997,3]
[345448229,1734263450763,-500.0,0.00019997,3]
[345448230,1734263450773,-500.0,0.00019997,3]
[345448231,1734263450782,-500.0,0.00019997,3]
[345448232,1734263450791,-705.82,0.00019997,3]
[345448233,1734263450801,-642.71,0.00019997,3]
[345448234,1734263450810,-642.71,0.00019997,3]
[345448235,1734263450820,-500.0,0.00019997,3]
[345448236,1734263450830,-740.05,0.00019997,3]
[345448237,1734263450839,-740.05,0.00019997,3]
[345448238,1734263450849,-171.948657,0.00019997,3]
[345448239,1734263450859,-359.444373,0.00019997,3]
[345448240,1734263450870,-542.7,0.00019997,3]
[345448241,1734263450880,-500.0,0.00019997,3]
[345448242,1734263450889,-1085.19,0.00019997,3]
[345448243,1734263450899,-1085.19,0.00019997,3]
[345448244,1734263450908,-6945.34,0.00019997,3]
[345448245,1734263450917,-2043.78,0.00019997,3]
[345448246,1734263450927,-708.49,0.00019997,3]
[345448247,1734263450936,-708.49,0.00019997,3]
[345448248,1734263450946,-500.0,0.00019997,3]
[345448249,1734263450956,-830.35,0.00019997,3]
[345448250,1734263450966,-830.35,0.00019997,3]
[345448251,1734263450975,-1109.49,0.00019997,3]
[345448252,1734263450985,-1109.49,0.00019997,3]
[345448253,1734263450995,-581.1,0.00019997,3]
[345448254,1734263451006,-500.0,0.00019997,3]
[345448255,1734263451016,-1222.92,0.00019997,3]
[345448256,1734263451026,-1222.92,0.00019997,3]
[345448257,1734263451036,-1671.42,0.00019997,3]
[345448258,1734263451045,-1671.42,0.00019997,3]
[345448259,1734263451056,-670.58,0.00019997,3]
[345448260,1734263451066,-500.0,0.00019997,3]
[345448261,1734263451076,-500.0,0.00019997,3]
[345448262,1734263451086,-500.0,0.00019997,3]
[345448263,1734263451097,-867.84,0.00019997,3]
[345448264,1734263451107,-867.84,0.00019997,3]
[345448265,1734263451118,-500.0,0.00019997,3]
[345448266,1734263451128,-151.0,0.00019997,2]
[345448267,1734263451138,-590.31,0.00019997,3]
[345448268,1734263451148,-500.0,0.00019997,3]
[345448269,1734263451157,-500.0,0.00019997,3]
[345448270,1734263451168,-546.48,0.00019997,3]
[345448271,1734263451178,-500.0,0.00019997,3]
[345448272,1734263451188,-369.07568521,0.00019997,3]
[345448273,1734263451198,-500.0,0.00019997,3]
[345448274,1734263451208,-500.0,0.00019997,3]
[345448275,1734263451218,-748.24,0.00019997,3]
[345448276,1734263451228,-510.77,0.00019997,3]
[345448277,1734263451237,-546.64,0.00019997,3]
[345448278,1734263451247,-500.0,0.00019997,3]
[345448279,1734263451257,-500.0,0.00019997,3]
[345448280,1734263451266,-617.64,0.00019997,3]
[345448281,1734263451276,-1597.68,0.00019997,3]
[345448282,1734263451286,-1597.68,0.00019997,3]
[345448283,1734263451296,-1027.21,0.00019997,3]
[345448284,1734263451306,-500.0,0.00019997,3]
[345448285,1734263451316,-502.35454349,0.00019997,3]
[345448286,1734263451325,-4435.54,0.00019997,3]
[345448287,1734263451335,-4435.54,0.00019997,3]
[345448288,1734263451345,-507.98,0.00019997,3]
[345448289,1734263451355,-500.0,0.00019997,3]
[345448290,1734263451364,-500.0,0.00019997,3]
[345448291,1734263451374,-500.0,0.00019997,3]
[345448292,1734263451383,-1085.21,0.00019997,3]
[345448293,1734263451393,-706.39,0.00019997,3]
[345448294,1734263451403,-513.21,0.00019997,3]
[345448295,1734263451413,-513.21,0.00019997,3]
[345448296,1734263451423,-500.0,0.00019997,3]
[345448297,1734263451433,-500.0,0.00019997,3]
[345448298,1734263451444,-885.56,0.00019997,3]
[345448299,1734263451454,-750.63,0.00019997,3]
[345448300,1734263451463,-500.0,0.00019997,3]
[345448301,1734263451473,-500.0,0.00019997,3]
[345448302,1734263451483,-544.8,0.00019997,3]
[345448303,1734263451492,-474.4,0.00019997,3]
[345448304,1734263451502,-629.77,0.00019997,3]
[345448305,1734263451512,-500.0,0.00019997,3]
[345448306,1734263451524,-500.0,0.00019997,3]
[345448307,1734263451534,-226.120635,0.00019997,2]
[345448308,1734263451543,-226.120635,0.00019997,2]
[345448309,1734263451552,-457.46,0.00019997,3]
[345448310,1734263451562,-739.78,0.00019997,3]
[345448311,1734263451572,-226.120635,0.00019997,2]
[345448312,1734263451582,-226.120635,0.00019997,2]
[345448313,1734263451592,-630.84,0.00019997,3]
[345448314,1734263451602,-2135.44,0.00019997,3]
[345448315,1734263451611,-750.03,0.00019997,3]
[345448316,1734263451622,-750.03,0.00019997,3]
[345448317,1734263451632,-500.0,0.00019997,3]
[345448318,1734263451643,-500.0,0.00019997,3]
[345448319,1734263451653,-500.0,0.00019997,3]
[345448320,1734263451663,-500.0,0.00019997,3]
[345448321,1734263451672,-2140.27,0.00019997,3]
[345448322,1734263451682,-500.0,0.00019997,3]
[345448323,1734263451691,-1894.47,0.00019997,3]
[345448324,1734263451701,-500.0,0.00019997,3]
[345448325,1734263451711,-500.0,0.00019997,3]
[345448326,1734263451720,-858.61,0.00019997,3]
[345448327,1734263451741,-500.0,0.00019997,3]
[345448328,1734263451751,-500.0,0.00019997,3]
[345448329,1734263451761,-500.0,0.00019998,3]
[345448330,1734263451770,-500.0,0.00019998,3]
[345448331,1734263451781,-500.0,0.00019998,3]
[345448332,1734263451791,-450.77283802,0.00019998,3]
[345448333,1734263451801,-500.0,0.00019998,3]
[345448334,1734263451810,-500.0,0.00019998,3]
[345448335,1734263451819,-389.52766525,0.00019998,3]
[345448336,1734263451832,-500.0,0.00019998,3]
[345448337,1734263451841,-500.0,0.00019998,3]
[345448338,1734263451851,-500.0,0.00019998,3]
[345448339,1734263451860,-500.0,0.00019998,3]
[345448340,1734263451869,-500.0,0.00019998,3]
[345448341,1734263451878,-500.0,0.00019998,3]
[345448342,1734263451888,-500.0,0.00019998,3]
[345448343,1734263451897,-500.0,0.00019998,3]
[345448344,1734263451907,-500.0,0.00019998,3]
[345448345,1734263451916,-500.0,0.00019998,3]
[345448346,1734263451926,-500.0,0.00019998,3]
[345448347,1734263451936,-500.0,0.00019998,3]
[345448348,1734263451945,-500.0,0.00019998,3]
[345448349,1734263451955,-500.0,0.00019998,3]
[345448350,1734263451967,-500.0,0.00019998,3]
[345448351,1734263451977,-500.0,0.00019998,3]
[345448352,1734263451987,-500.0,0.00019998,3]
[345448353,1734263451996,-500.0,0.00019998,3]
[345448354,1734263452006,-500.0,0.00019998,3]
[345448355,1734263452018,-169.09021823,0.00019998,3]
[345448356,1734263452029,-500.0,0.00019998,2]
[345448357,1734263452038,-500.0,0.00019998,3]
[345448358,1734263452048,-500.0,0.00019998,3]
[345448359,1734263452058,-500.0,0.00019998,3]
[345448360,1734263452068,-500.0,0.00019998,3]
[345448361,1734263452078,-500.0,0.00019998,3]
[345448362,1734263452087,-500.0,0.00019998,3]
[345448363,1734263452097,-500.0,0.00019998,3]
[345448364,1734263452107,-500.0,0.00019998,3]
[345448365,1734263452117,-500.0,0.00019998,3]
[345448366,1734263452127,-500.0,0.00019998,3]
[345448367,1734263452136,-251.08985364,0.00019998,3]
[345448368,1734263452146,-962.06,0.00019998,3]
[345448369,1734263452155,-962.06,0.00019998,3]
[345448370,1734263452165,-962.06,0.00019998,3]
[345448371,1734263452175,-962.06,0.00019998,3]
[345448372,1734263452185,-274.301383,0.00019998,2]
[345448373,1734263452195,-274.301383,0.00019998,2]
[345448374,1734263452204,-274.301383,0.00019998,2]
[345448375,1734263452214,-274.301383,0.00019998,2]
[345448376,1734263452224,-500.0,0.00019998,3]
[345448377,1734263452233,-500.0,0.00019998,3]
[345448378,1734263452243,-500.0,0.00019998,3]
[345448379,1734263452252,-500.0,0.00019998,3]
[345448380,1734263452262,-500.0,0.00019998,3]
[345448381,1734263452271,-500.0,0.00019998,3]
[345448382,1734263452280,-500.0,0.00019998,3]
[345448383,1734263452289,-500.0,0.00019998,3]
[345448384,1734263452299,-500.0,0.00019998,3]
[345448385,1734263452308,-500.0,0.00019998,3]
[345448386,1734263452319,-500.0,0.00019998,3]
[345448387,1734263452328,-500.0,0.00019998,3]
[345448388,1734263452338,-500.0,0.00019998,3]
[345448389,1734263452347,-500.0,0.00019998,3]
[345448390,1734263452357,-500.0,0.00019998,3]
[345448391,1734263452367,-500.0,0.00019998,3]
[345448392,1734263452376,-237.96277342,0.00019998,3]
[345448393,1734263452386,-500.0,0.00019998,3]
[345448394,1734263452395,-500.0,0.00019998,3]
[345448395,1734263452405,-500.0,0.00019998,3]
[345448396,1734263452415,-500.0,0.00019998,3]
[345448397,1734263452424,-500.0,0.00019998,3]
[345448398,1734263452434,-500.0,0.00019998,3]
[345448399,1734263452444,-500.0,0.00019998,3]
[345448400,1734263452453,-500.0,0.00019998,3]
[345448401,1734263452463,-865.82,0.00019998,3]
[345448402,1734263452472,-865.82,0.00019998,3]
[345448403,1734263452481,-865.82,0.00019998,3]
[345448404,1734263452491,-865.82,0.00019998,3]
[345448405,1734263452500,-834.75,0.00019998,3]
[345448406,1734263452509,-834.75,0.00019998,3]
[345448407,1734263452523,-834.75,0.00019998,3]
[345448408,1734263452533,-834.75,0.00019998,3]
[345448409,1734263452543,-500.0,0.00019998,3]
[345448410,1734263452552,-500.0,0.00019998,3]
[345448411,1734263452561,-500.0,0.00019998,3]
[345448412,1734263452571,-500.0,0.00019998,3]
[345448413,1734263452580,-500.0,0.00019998,3]
[345448414,1734263452590,-500.0,0.00019998,3]
[345448415,1734263452599,-500.0,0.00019998,3]
[345448416,1734263452609,-500.0,0.00019998,3]
[345448417,1734263452619,-500.0,0.00019998,3]
[345448418,1734263452628,-500.0,0.00019998,3]
[345448419,1734263452637,-500.0,0.00019998,3]
[345448420,1734263452647,-500.0,0.00019998,3]
[345448421,1734263452656,-500.0,0.00019998,3]
[345448422,1734263452666,-562.57,0.00019998,3]
[345448423,1734263452676,-562.57,0.00019998,3]
[345448424,1734263452686,-562.57,0.00019998,3]
[345448425,1734263452695,-562.57,0.00019998,3]
[345448426,1734263452705,-500.0,0.00019998,3]
[345448427,1734263452715,-500.0,0.00019998,3]
[345448428,1734263452724,-275.06831918,0.00019998,3]
[345448429,1734263452734,-542.27,0.00019998,3]
[345448430,1734263452744,-542.27,0.00019998,3]
[345448431,1734263452754,-542.27,0.00019998,3]
[345448432,1734263452763,-542.27,0.00019998,3]
[345448433,1734263452773,-500.0,0.00019998,3]
[345448434,1734263452783,-500.0,0.00019998,3]
[345448435,1734263452792,-500.0,0.00019998,3]
[345448436,1734263452801,-500.0,0.00019998,3]
[345448437,1734263452811,-500.0,0.00019998,3]
[345448438,1734263452820,-500.0,0.00019998,3]
[345448439,1734263452829,-500.0,0.00019998,3]
[345448440,1734263452839,-500.0,0.00019998,3]
[345448441,1734263452849,-500.0,0.00019998,3]
[345448442,1734263453014,-500.0,0.00019998,3]
[345448443,1734263453024,-500.0,0.00019998,3]
[345448444,1734263453034,-500.0,0.00019998,3]
[345448445,1734263453043,-500.0,0.00019998,3]
[345448446,1734263453053,-500.0,0.00019998,3]
[345448447,1734263453062,-500.0,0.00019998,3]
[345448448,1734263453072,-500.0,0.00019998,3]
[345448449,1734263453081,-500.0,0.00019998,3]
[345448450,1734263453091,-2757.68,0.00019998,30]
[345448451,1734263453100,-2757.68,0.00019998,30]
[345448452,1734263453110,-2757.68,0.00019998,30]
[345448453,1734263453120,-2757.68,0.00019998,30]
[345448454,1734263453129,-2947.03,0.00019998,3]
[345448455,1734263453138,-2947.03,0.00019998,3]
[345448456,1734263453148,-2947.03,0.00019998,3]
[345448457,1734263453158,-2947.03,0.00019998,3]
[345448458,1734263453169,-500.0,0.00019998,3]
[345448459,1734263453178,-500.0,0.00019998,3]
[345448460,1734263453188,-500.0,0.00019998,3]
[345448461,1734263453197,-500.0,0.00019998,3]
[345448462,1734263453207,-500.0,0.00019998,3]
[345448463,1734263453216,-500.0,0.00019998,3]
[345448464,1734263453227,-500.0,0.00019998,3]
[345448465,1734263453239,-500.0,0.00019998,3]
[345448466,1734263453249,-922.44,0.00019998,3]
[345448467,1734263453259,-922.44,0.00019998,3]
[345448468,1734263453268,-922.44,0.00019998,3]
[345448469,1734263453279,-500.0,0.00019998,3]
[345448470,1734263453289,-922.44,0.00019998,3]
[345448471,1734263453299,-500.0,0.00019998,3]
[345448472,1734263453308,-500.0,0.00019998,3]
[345448473,1734263453319,-500.0,0.00019998,3]
[345448474,1734263453329,-500.0,0.00019998,3]
[345448475,1734263453343,-500.0,0.00019998,3]
[345448476,1734263453354,-500.0,0.00019998,3]
[345448477,1734263453365,-378.12,0.00019998,3]
[345448478,1734263453375,-500.0,0.00019998,3]
[345448479,1734263453385,-500.0,0.00019998,3]
[345448480,1734263453395,-500.0,0.00019998,3]
[345448481,1734263453406,-500.0,0.00019998,3]
[345448482,1734263453418,-500.0,0.00019998,3]
[345448483,1734263453430,-500.0,0.00019998,3]
[345448484,1734263453441,-705.82,0.00019998,3]
[345448485,1734263453451,-500.0,0.00019998,3]
[345448486,1734263453462,-705.82,0.00019998,3]
[345448487,1734263453476,-500.0,0.00019998,3]
[345448488,1734263453486,-705.82,0.00019998,3]
[345448489,1734263453496,-705.82,0.00019998,3]
[345448490,1734263453508,-642.71,0.00019998,3]
[345448491,1734263453521,-642.71,0.00019998,3]
[345448492,1734263453531,-500.0,0.00019998,3]
[345448493,1734263453540,-642.71,0.00019998,3]
[345448494,1734263453550,-500.0,0.00019998,3]
[345448495,1734263453559,-642.71,0.00019998,3]
[345448496,1734263453569,-500.0,0.00019998,3]
[345448497,1734263453579,-325.66345996,0.00019998,3]
[345448498,1734263453588,-740.05,0.00019998,3]
[345448499,1734263453597,-740.05,0.00019998,3]
[345448500,1734263453610,-740.05,0.00019998,3]
[345448501,1734263453620,-740.05,0.00019998,3]
[345448502,1734263453630,-171.948657,0.00019998,3]
[345448503,1734263453640,-171.948657,0.00019998,3]
[345448504,1734263453650,-171.948657,0.00019998,3]
[345448505,1734263453661,-359.444373,0.00019998,3]
[345448506,1734263453671,-359.444373,0.00019998,3]
[345448507,1734263453682,-359.444373,0.00019998,3]
[345448508,1734263453693,-359.444373,0.00019998,3]
[345448509,1734263453703,-542.7,0.00019998,3]
[345448510,1734263453714,-542.7,0.00019998,3]
[345448511,1734263453726,-542.7,0.00019998,3]
[345448512,1734263453736,-542.7,0.00019998,3]
[345448513,1734263453746,-500.0,0.00019998,3]
[345448514,1734263453757,-500.0,0.00019998,3]
[345448515,1734263453767,-500.0,0.00019998,3]
[345448516,1734263453779,-500.0,0.00019998,3]
[345448517,1734263453790,-1085.19,0.00019998,3]
[345448518,1734263453800,-1085.19,0.00019998,3]
[345448519,1734263453810,-1085.19,0.00019998,3]
[345448520,1734263453819,-1085.19,0.00019998,3]
[345448521,1734263453829,-6945.34,0.00019998,3]
[345448522,1734263453838,-6945.34,0.00019998,3]
[345448523,1734263453848,-6945.34,0.00019998,3]
[345448524,1734263453857,-6945.34,0.00019998,3]
[345448525,1734263453867,-2043.78,0.00019998,3]
[345448526,1734263453876,-2043.78,0.00019998,3]
[345448527,1734263453885,-2043.78,0.00019998,3]
[345448528,1734263453894,-2043.78,0.00019998,3]
[345448529,1734263453906,-708.49,0.00019998,3]
[345448530,1734263453918,-708.49,0.00019998,3]
[345448531,1734263453928,-708.49,0.00019998,3]
[345448532,1734263453938,-708.49,0.00019998,3]
[345448533,1734263453948,-500.0,0.00019998,3]
[345448534,1734263453958,-500.0,0.00019998,3]
[345448535,1734263453969,-500.0,0.00019998,3]
[345448536,1734263453981,-500.0,0.00019998,3]
[345448537,1734263453991,-830.35,0.00019998,3]
[345448538,1734263454001,-830.35,0.00019998,3]
[345448539,1734263454010,-830.35,0.00019998,3]
[345448540,1734263454019,-830.35,0.00019998,3]
[345448541,1734263454029,-1109.49,0.00019998,3]
[345448542,1734263454038,-1109.49,0.00019998,3]
[345448543,1734263454047,-540.08316638,0.00019998,3]
[345448544,1734263454288,-500.0,0.0001983,3]
[345448545,1734263454298,-290.14,0.00019854,3]
[345448546,1734263454308,-500.0,0.00019895,3]
[345448547,1734263454317,-500.0,0.00019994,3]
[345448548,1734263454326,-500.0,0.00019996,3]
[345448549,1734263454335,-500.0,0.00019997,3]
[345448550,1734263454344,-569.40683362,0.00019998,3]
[345448551,1734263454353,-1109.49,0.00019998,3]
[345448552,1734263454363,-151.48201613,0.00019998,3]
[345448553,1734263454378,-429.61798387,0.00019998,3]
[345448554,1734263454388,-581.1,0.00019998,3]
[345448555,1734263454397,-581.1,0.00019998,3]
[345448556,1734263454406,-581.1,0.00019998,3]
[345448557,1734263454416,-1222.92,0.00019998,3]
[345448558,1734263454425,-1222.92,0.00019998,3]
[345448559,1734263454434,-1222.92,0.00019998,3]
[345448560,1734263454444,-1222.92,0.00019998,3]
[345448561,1734263454453,-1671.42,0.00019998,3]
[345448562,1734263454462,-1671.42,0.00019998,3]
[345448563,1734263454471,-1671.42,0.00019998,3]
[345448564,1734263454480,-1671.42,0.00019998,3]
[345448565,1734263454490,-670.58,0.00019998,3]
[345448566,1734263454499,-670.58,0.00019998,3]
[345448567,1734263454508,-670.58,0.00019998,3]
[345448568,1734263454519,-670.58,0.00019998,3]
[345448569,1734263454529,-500.0,0.00019998,3]
[345448570,1734263454538,-446.22213254,0.00019998,3]
[345448571,1734263454554,-53.77786746,0.00019998,3]
[345448572,1734263454563,-446.97148426,0.00019998,3]
[345448573,1734263454575,-53.02851574,0.00019998,3]
[345448574,1734263454584,-373.99498676,0.00019998,3]
[345448575,1734263454596,-126.00501324,0.00019998,3]
[345448576,1734263454606,-500.0,0.00019998,3]
[345448577,1734263454615,-500.0,0.00019998,3]
[345448578,1734263454625,-500.0,0.00019998,3]
[345448579,1734263454634,-500.0,0.00019998,3]
[345448580,1734263454643,-748.39650224,0.00019998,3]
[345448581,1734263454658,-119.44349776,0.00019998,3]
[345448582,1734263454667,-867.84,0.00019998,3]
[345448583,1734263454677,-215.11650224,0.00019998,3]
[345448584,1734263454691,-652.72349776,0.00019998,3]
[345448585,1734263454701,-515.42650214,0.00019998,3]
[345448586,1734263454712,-352.41349786,0.00019998,3]
[345448587,1734263454722,-475.51650314,0.00019998,3]
[345448588,1734263454733,-24.48349686,0.00019998,3]
[345448589,1734263454743,-500.0,0.00019998,3]
[345448590,1734263454752,-500.0,0.00019998,3]
[345448591,1734263454762,-500.0,0.00019998,3]